[Event "Early-Titled-Tuesday-Blitz-May-14-2024"]
[Site "Chess.com"]
[Date "2024.05.14"]
[Round "3"]
[White "agvega14"]
[Black "Levanzovsky"]
[Result "1/2-1/2"]
[WhiteElo "2156"]
[BlackElo "2553"]
[TimeControl "180+1"]
[EndTime "8:29:13 PDT"]
[Termination "Game drawn by repetition"]

1. e4 {[%clk 0:02:59.5]} 1... e5 {[%clk 0:02:59.5]} 2. Nf3 {[%clk 0:02:55.9]}
2... Nc6 {[%clk 0:02:59.6]} 3. d4 {[%clk 0:02:55.5]} 3... exd4 {[%clk
0:02:59.6]} 4. Bc4 {[%clk 0:02:55.1]} 4... Nf6 {[%clk 0:02:59.3]} 5. e5 {[%clk
0:02:55.4]} 5... d5 {[%clk 0:02:58.1]} 6. Bb5 {[%clk 0:02:56.1]} 6... Nd7 {[%clk
0:02:58.3]} 7. O-O {[%clk 0:02:52.9]} 7... Be7 {[%clk 0:02:52.4]} 8. Bxc6 {[%clk
0:02:44.2]} 8... bxc6 {[%clk 0:02:52.1]} 9. Qxd4 {[%clk 0:02:42.4]} 9... O-O
{[%clk 0:02:50.2]} 10. Nc3 {[%clk 0:02:40.7]} 10... f6 {[%clk 0:02:47.8]} 11.
Nxd5 {[%clk 0:02:19.8]} 11... fxe5 {[%clk 0:02:27.2]} 12. Nxe7+ {[%clk 0:02:17]}
12... Qxe7 {[%clk 0:02:28.1]} 13. Qc4+ {[%clk 0:02:14.1]} 13... Kh8 {[%clk
0:02:26.6]} 14. Qxc6 {[%clk 0:02:00.6]} 14... Rb8 {[%clk 0:02:12.4]} 15. Bg5
{[%clk 0:01:59.3]} 15... Qf7 {[%clk 0:02:06.7]} 16. Qxc7 {[%clk 0:01:34.6]}
16... Rxb2 {[%clk 0:02:01.4]} 17. Be3 {[%clk 0:01:20.8]} 17... h6 {[%clk
0:01:46.9]} 18. Nxe5 {[%clk 0:01:10.1]} 18... Nxe5 {[%clk 0:01:44]} 19. Qxe5
{[%clk 0:01:09.8]} 19... Rxc2 {[%clk 0:01:44.1]} 20. Rac1 {[%clk 0:00:36.8]}
20... Rxc1 {[%clk 0:01:28.7]} 21. Rxc1 {[%clk 0:00:37.7]} 21... Qg6 {[%clk
0:01:16.3]} 22. h4 {[%clk 0:00:31.9]} 22... Bb7 {[%clk 0:01:12.6]} 23. Qg3
{[%clk 0:00:23.8]} 23... Qxg3 {[%clk 0:01:07.9]} 24. fxg3 {[%clk 0:00:24.7]}
24... Rf7 {[%clk 0:00:48.4]} 25. Rc2 {[%clk 0:00:22.1]} 25... Kh7 {[%clk
0:00:38.4]} 26. Rb2 {[%clk 0:00:21.8]} 26... Bd5 {[%clk 0:00:36.2]} 27. Bf4
{[%clk 0:00:19.7]} 27... Rb7 {[%clk 0:00:33.2]} 28. Rxb7 {[%clk 0:00:19]} 28...
Bxb7 {[%clk 0:00:33.3]} 29. Kf2 {[%clk 0:00:19.7]} 29... h5 {[%clk 0:00:33.1]}
30. Bg5 {[%clk 0:00:17.8]} 30... Kg6 {[%clk 0:00:32.7]} 31. Be3 {[%clk
0:00:18.3]} 31... a5 {[%clk 0:00:31.2]} 32. Bd4 {[%clk 0:00:17.8]} 32... a4
{[%clk 0:00:30.6]} 33. Bc5 {[%clk 0:00:16.6]} 33... Kf5 {[%clk 0:00:29.5]} 34.
a3 {[%clk 0:00:16.9]} 34... Ke4 {[%clk 0:00:29.1]} 35. Bf8 {[%clk 0:00:16.4]}
35... g6 {[%clk 0:00:30]} 36. Bb4 {[%clk 0:00:16.1]} 36... Kd3 {[%clk
0:00:30.1]} 37. Bf8 {[%clk 0:00:16.4]} 37... Bc6 {[%clk 0:00:30]} 38. Bb4 {[%clk
0:00:16.9]} 38... Bb7 {[%clk 0:00:30.4]} 39. Bf8 {[%clk 0:00:17.5]} 39... Bc8
{[%clk 0:00:30.9]} 40. Bb4 {[%clk 0:00:18.2]} 40... Bg4 {[%clk 0:00:31.7]} 41.
Bf8 {[%clk 0:00:18.7]} 41... Bf5 {[%clk 0:00:31.9]} 42. Bb4 {[%clk 0:00:19.2]}
42... Bg4 {[%clk 0:00:32.8]} 43. Bf8 {[%clk 0:00:19.7]} 43... Ke4 {[%clk
0:00:33.2]} 44. Bb4 {[%clk 0:00:20.4]} 44... Bf5 {[%clk 0:00:33.6]} 45. Bf8
{[%clk 0:00:21]} 45... Bg4 {[%clk 0:00:34.5]} 46. Bb4 {[%clk 0:00:21.4]} 46...
Bf5 {[%clk 0:00:35.4]} 47. Bf8 {[%clk 0:00:21.8]} 47... Bg4 {[%clk 0:00:36.3]}
1/2-1/2

[Event "Early-Titled-Tuesday-Blitz-May-14-2024"]
[Site "Chess.com"]
[Date "2024.05.14"]
[Round "3"]
[White "PattyCastillo"]
[Black "cukus"]
[Result "0-1"]
[WhiteElo "2070"]
[BlackElo "2382"]
[TimeControl "180+1"]
[EndTime "8:29:15 PDT"]
[Termination "cukus won on time"]

1. d4 {[%clk 0:02:59.8]} 1... Nf6 {[%clk 0:03:00.4]} 2. Nf3 {[%clk 0:02:58.2]}
2... g6 {[%clk 0:03:00.8]} 3. Nc3 {[%clk 0:02:57.3]} 3... d5 {[%clk 0:02:57.2]}
4. Bf4 {[%clk 0:02:56.1]} 4... Bg7 {[%clk 0:02:56.9]} 5. e3 {[%clk 0:02:55.9]}
5... O-O {[%clk 0:02:55.9]} 6. Be2 {[%clk 0:02:54.8]} 6... c5 {[%clk 0:02:53.5]}
7. Ne5 {[%clk 0:02:46.5]} 7... Nc6 {[%clk 0:02:49.9]} 8. O-O {[%clk 0:02:42.5]}
8... Bf5 {[%clk 0:02:32.9]} 9. a3 {[%clk 0:02:37]} 9... Rc8 {[%clk 0:02:15.5]}
10. g4 {[%clk 0:02:33]} 10... Be6 {[%clk 0:02:09.3]} 11. h3 {[%clk 0:02:31.8]}
11... cxd4 {[%clk 0:02:04.6]} 12. exd4 {[%clk 0:02:31.6]} 12... Ne4 {[%clk
0:01:59.6]} 13. Nxe4 {[%clk 0:01:56.4]} 13... dxe4 {[%clk 0:01:58.6]} 14. Nxc6
{[%clk 0:01:53.2]} 14... bxc6 {[%clk 0:01:51.6]} 15. c3 {[%clk 0:01:46.7]} 15...
Qb6 {[%clk 0:01:47.2]} 16. Qd2 {[%clk 0:01:30.3]} 16... Rfd8 {[%clk 0:01:45.5]}
17. Be3 {[%clk 0:01:28]} 17... Qb3 {[%clk 0:01:35.4]} 18. Bd1 {[%clk 0:01:23.4]}
18... Qb7 {[%clk 0:01:32.7]} 19. Be2 {[%clk 0:01:18.8]} 19... c5 {[%clk
0:01:27.4]} 20. Rfc1 {[%clk 0:01:09.6]} 20... cxd4 {[%clk 0:01:27.1]} 21. cxd4
{[%clk 0:01:07.2]} 21... Rxc1+ {[%clk 0:01:18]} 22. Rxc1 {[%clk 0:01:08.1]}
22... Qb6 {[%clk 0:01:12.7]} 23. d5 {[%clk 0:00:54.4]} 23... Qb7 {[%clk
0:01:02.1]} 24. Qa5 {[%clk 0:00:33.2]} 24... Qxd5 {[%clk 0:00:56.8]} 25. Qxd5
{[%clk 0:00:21.9]} 25... Bxd5 {[%clk 0:00:53.1]} 26. Bxa7 {[%clk 0:00:18.4]}
26... Bxb2 {[%clk 0:00:51.5]} 27. Rc7 {[%clk 0:00:15.7]} 27... Bxa3 {[%clk
0:00:48.3]} 28. Bb6 {[%clk 0:00:14.9]} 28... Rb8 {[%clk 0:00:41.3]} 29. Bc5
{[%clk 0:00:12.4]} 29... Bxc5 {[%clk 0:00:38.8]} 30. Rxc5 {[%clk 0:00:13.3]}
30... e6 {[%clk 0:00:38.5]} 31. Kh2 {[%clk 0:00:06]} 31... Kg7 {[%clk
0:00:38.7]} 32. Kg3 {[%clk 0:00:06.3]} 32... Rb3+ {[%clk 0:00:38.3]} 33. Kf4
{[%clk 0:00:02.3]} 33... h6 {[%clk 0:00:34.8]} 34. g5 {[%clk 0:00:01.5]} 34...
hxg5+ {[%clk 0:00:34.2]} 35. Kxg5 {[%clk 0:00:01.9]} 35... Rxh3 {[%clk 0:00:33]}
0-1

[Event "Early-Titled-Tuesday-Blitz-May-14-2024"]
[Site "Chess.com"]
[Date "2024.05.14"]
[Round "3"]
[White "ChEsper99"]
[Black "BelyakovBogdan"]
[Result "0-1"]
[WhiteElo "2275"]
[BlackElo "2594"]
[TimeControl "180+1"]
[EndTime "8:29:17 PDT"]
[Termination "BelyakovBogdan won by resignation"]

1. Nf3 {[%clk 0:03:00.9]} 1... Nf6 {[%clk 0:02:59.9]} 2. g3 {[%clk 0:03:00.6]}
2... g6 {[%clk 0:03:00.3]} 3. Bg2 {[%clk 0:03:00.8]} 3... Bg7 {[%clk 0:03:00.8]}
4. O-O {[%clk 0:03:01.1]} 4... O-O {[%clk 0:03:01.3]} 5. d4 {[%clk 0:03:00.9]}
5... d6 {[%clk 0:03:01.7]} 6. c4 {[%clk 0:02:50.9]} 6... Nc6 {[%clk 0:03:01.4]}
7. d5 {[%clk 0:02:46.3]} 7... Na5 {[%clk 0:03:01.4]} 8. Nbd2 {[%clk 0:02:33.4]}
8... c5 {[%clk 0:02:56.9]} 9. dxc6 {[%clk 0:02:29.2]} 9... Nxc6 {[%clk
0:02:47.7]} 10. Nb3 {[%clk 0:02:17.2]} 10... Be6 {[%clk 0:02:44.3]} 11. c5
{[%clk 0:02:15.4]} 11... Bxb3 {[%clk 0:02:43.1]} 12. Qxb3 {[%clk 0:02:14.7]}
12... Na5 {[%clk 0:02:42.7]} 13. Qa3 {[%clk 0:02:04.1]} 13... dxc5 {[%clk
0:02:34.9]} 14. Qxc5 {[%clk 0:01:56.3]} 14... b6 {[%clk 0:02:31.7]} 15. Qg5
{[%clk 0:01:44.9]} 15... Rc8 {[%clk 0:02:26.6]} 16. Qh4 {[%clk 0:01:39.9]} 16...
Rc4 {[%clk 0:02:24.1]} 17. Qg5 {[%clk 0:01:29.2]} 17... h6 {[%clk 0:02:17.3]}
18. Qd2 {[%clk 0:01:29]} 18... Qxd2 {[%clk 0:02:07.3]} 19. Bxd2 {[%clk
0:01:29.9]} 19... Rc2 {[%clk 0:02:07.3]} 20. Bxa5 {[%clk 0:01:23.8]} 20... bxa5
{[%clk 0:02:06.6]} 21. Rab1 {[%clk 0:00:58]} 21... Rxe2 {[%clk 0:02:04.8]} 22.
Rfe1 {[%clk 0:00:46.2]} 22... Rxe1+ {[%clk 0:02:02.5]} 23. Rxe1 {[%clk
0:00:44.5]} 23... e6 {[%clk 0:01:57.5]} 24. b3 {[%clk 0:00:42.6]} 24... Nd5
{[%clk 0:01:48]} 25. Rc1 {[%clk 0:00:36.3]} 25... Nb4 {[%clk 0:01:42.7]} 26. Rc5
{[%clk 0:00:26.6]} 26... Nxa2 {[%clk 0:01:35]} 27. Rxa5 {[%clk 0:00:26.8]} 27...
Nc1 {[%clk 0:01:35.3]} 28. Rxa7 {[%clk 0:00:16.7]} 28... Nxb3 {[%clk 0:01:35.2]}
29. h4 {[%clk 0:00:16.6]} 29... Rc8 {[%clk 0:01:28.6]} 30. Bf1 {[%clk
0:00:12.2]} 30... Nd4 {[%clk 0:01:18]} 31. Nxd4 {[%clk 0:00:08.8]} 31... Bxd4
{[%clk 0:01:18.9]} 32. Ra2 {[%clk 0:00:09]} 32... Kg7 {[%clk 0:01:16]} 33. Kg2
{[%clk 0:00:07.3]} 33... f5 {[%clk 0:01:11.3]} 34. Be2 {[%clk 0:00:07.4]} 34...
Kf6 {[%clk 0:01:10.4]} 35. Bf3 {[%clk 0:00:07.4]} 35... g5 {[%clk 0:01:06.4]}
36. hxg5+ {[%clk 0:00:05.4]} 36... hxg5 {[%clk 0:01:07.3]} 37. Bd1 {[%clk
0:00:04.2]} 37... Rc6 {[%clk 0:01:02.6]} 38. Rc2 {[%clk 0:00:04.3]} 38... Rb6
{[%clk 0:01:02.2]} 39. Be2 {[%clk 0:00:05]} 39... e5 {[%clk 0:01:00.6]} 40. Bc4
{[%clk 0:00:02.4]} 40... e4 {[%clk 0:00:59.1]} 41. Be2 {[%clk 0:00:02]} 41... f4
{[%clk 0:00:54.2]} 42. gxf4 {[%clk 0:00:01.3]} 42... gxf4 {[%clk 0:00:55.1]} 43.
Bf1 {[%clk 0:00:00.6]} 43... Ke5 {[%clk 0:00:53.6]} 44. f3 {[%clk 0:00:01.1]}
44... Rg6+ {[%clk 0:00:52.6]} 45. Kh1 {[%clk 0:00:00.6]} 45... Rg1+ {[%clk
0:00:51.4]} 46. Kh2 {[%clk 0:00:01.2]} 46... Rxf1 {[%clk 0:00:52.3]} 47. fxe4
{[%clk 0:00:01.6]} 0-1

[Event "Early-Titled-Tuesday-Blitz-May-14-2024"]
[Site "Chess.com"]
[Date "2024.05.14"]
[Round "3"]
[White "nitpicker"]
[Black "KanalSzachowy"]
[Result "1-0"]
[WhiteElo "2284"]
[BlackElo "2416"]
[TimeControl "180+1"]
[EndTime "8:29:17 PDT"]
[Termination "nitpicker won on time"]

1. d4 {[%clk 0:03:00.9]} 1... Nf6 {[%clk 0:02:58.7]} 2. c4 {[%clk 0:03:00.9]}
2... e6 {[%clk 0:02:58.7]} 3. g3 {[%clk 0:03:00.6]} 3... Bb4+ {[%clk 0:02:58.1]}
4. Bd2 {[%clk 0:03:00.2]} 4... Qe7 {[%clk 0:02:56.8]} 5. Bg2 {[%clk 0:03:00.1]}
5... Nc6 {[%clk 0:02:56.5]} 6. Nf3 {[%clk 0:02:59.7]} 6... Bxd2+ {[%clk
0:02:55.9]} 7. Qxd2 {[%clk 0:02:59.4]} 7... d5 {[%clk 0:02:51.8]} 8. Na3 {[%clk
0:02:45.6]} 8... O-O {[%clk 0:02:50.2]} 9. O-O {[%clk 0:02:44.8]} 9... Rd8
{[%clk 0:02:49.4]} 10. Rfc1 {[%clk 0:02:27.1]} 10... e5 {[%clk 0:02:27.7]} 11.
cxd5 {[%clk 0:02:21]} 11... Nxd5 {[%clk 0:02:23.8]} 12. e4 {[%clk 0:02:16.8]}
12... Nf6 {[%clk 0:02:16.9]} 13. d5 {[%clk 0:02:16.9]} 13... Nxe4 {[%clk
0:02:09.8]} 14. Qc2 {[%clk 0:02:15.1]} 14... Bf5 {[%clk 0:01:50.1]} 15. dxc6
{[%clk 0:02:10.7]} 15... Nxg3 {[%clk 0:01:49.3]} 16. Qa4 {[%clk 0:01:03.1]}
16... Ne2+ {[%clk 0:01:47.6]} 17. Kh1 {[%clk 0:01:03.7]} 17... Nxc1 {[%clk
0:01:46.2]} 18. cxb7 {[%clk 0:01:02.4]} 18... Rab8 {[%clk 0:01:25.6]} 19. Rxc1
{[%clk 0:01:02.2]} 19... e4 {[%clk 0:01:06.5]} 20. Nd4 {[%clk 0:00:55.2]} 20...
Bd7 {[%clk 0:00:22.2]} 21. Qxa7 {[%clk 0:00:54.3]} 21... Qe5 {[%clk 0:00:14.8]}
22. Nc4 {[%clk 0:00:40.7]} 22... Qf4 {[%clk 0:00:13.8]} 23. Ne2 {[%clk 0:00:31]}
23... Qh4 {[%clk 0:00:07.8]} 24. Ne3 {[%clk 0:00:22.8]} 24... Bg4 {[%clk
0:00:05.8]} 25. Ng3 {[%clk 0:00:20.6]} 25... Bf3 {[%clk 0:00:02.8]} 26. Rxc7
{[%clk 0:00:20.1]} 26... Bxg2+ {[%clk 0:00:02.8]} 27. Kxg2 {[%clk 0:00:19.8]}
27... Qf4 {[%clk 0:00:03.1]} 28. Qxb8 {[%clk 0:00:14.8]} 28... Qf3+ {[%clk
0:00:02]} 29. Kh3 {[%clk 0:00:10.4]} 1-0

[Event "Early-Titled-Tuesday-Blitz-May-14-2024"]
[Site "Chess.com"]
[Date "2024.05.14"]
[Round "3"]
[White "Flameboard08"]
[Black "balack95"]
[Result "1/2-1/2"]
[WhiteElo "2715"]
[BlackElo "2510"]
[TimeControl "180+1"]
[EndTime "8:29:22 PDT"]
[Termination "Game drawn by repetition"]

1. f4 {[%clk 0:03:00.9]} 1... g6 {[%clk 0:02:59.4]} 2. Nf3 {[%clk 0:03:01]} 2...
Bg7 {[%clk 0:03:00.3]} 3. g3 {[%clk 0:02:58.1]} 3... d5 {[%clk 0:03:00.5]} 4.
Bg2 {[%clk 0:02:58.3]} 4... Nh6 {[%clk 0:03:01.2]} 5. O-O {[%clk 0:02:58.9]}
5... O-O {[%clk 0:03:01.9]} 6. d3 {[%clk 0:02:59.5]} 6... d4 {[%clk 0:03:01.9]}
7. e4 {[%clk 0:02:59.2]} 7... dxe3 {[%clk 0:03:01.9]} 8. c3 {[%clk 0:02:58.5]}
8... Bg4 {[%clk 0:02:59.9]} 9. Bxe3 {[%clk 0:02:56.5]} 9... Nc6 {[%clk 0:02:58]}
10. d4 {[%clk 0:02:52.4]} 10... Nf5 {[%clk 0:02:57.8]} 11. Bf2 {[%clk
0:02:52.4]} 11... Nd6 {[%clk 0:02:57.6]} 12. h3 {[%clk 0:02:51.4]} 12... Bf5
{[%clk 0:02:56.5]} 13. Ne5 {[%clk 0:02:50.5]} 13... Nxe5 {[%clk 0:02:51.3]} 14.
fxe5 {[%clk 0:02:50.6]} 14... Ne4 {[%clk 0:02:48.2]} 15. Be1 {[%clk 0:02:48.6]}
15... Ng5 {[%clk 0:02:42.3]} 16. g4 {[%clk 0:02:44.7]} 16... Be4 {[%clk
0:02:34.8]} 17. Qe2 {[%clk 0:02:44.4]} 17... Bxg2 {[%clk 0:02:34.3]} 18. Qxg2
{[%clk 0:02:45.3]} 18... c6 {[%clk 0:02:33.6]} 19. Nd2 {[%clk 0:02:42.5]} 19...
Qd5 {[%clk 0:02:33.6]} 20. h4 {[%clk 0:02:40.9]} 20... Qxg2+ {[%clk 0:02:32.7]}
21. Kxg2 {[%clk 0:02:41.8]} 21... Ne6 {[%clk 0:02:33.1]} 22. Bg3 {[%clk
0:02:40.8]} 22... Rad8 {[%clk 0:02:31.6]} 23. b4 {[%clk 0:02:37.9]} 23... b6
{[%clk 0:02:29.6]} 24. Ne4 {[%clk 0:02:25.9]} 24... c5 {[%clk 0:02:26.4]} 25.
bxc5 {[%clk 0:02:26.8]} 25... bxc5 {[%clk 0:02:26.7]} 26. dxc5 {[%clk 0:02:26]}
26... Rc8 {[%clk 0:02:19.2]} 27. Rab1 {[%clk 0:02:20.7]} 27... Nxc5 {[%clk
0:02:17.9]} 28. Nxc5 {[%clk 0:02:04.6]} 28... Rxc5 {[%clk 0:02:17.6]} 29. Rb7
{[%clk 0:02:05]} 29... Rxc3 {[%clk 0:01:42.7]} 30. Rxa7 {[%clk 0:02:03.3]} 30...
e6 {[%clk 0:01:34.3]} 31. Re1 {[%clk 0:01:51.1]} 31... Rc2+ {[%clk 0:01:34.3]}
32. Kh3 {[%clk 0:01:50.1]} 32... Rfc8 {[%clk 0:01:29.8]} 33. Rf1 {[%clk
0:01:44.1]} 33... R2c3 {[%clk 0:01:19.3]} 34. Raxf7 {[%clk 0:01:26.6]} 34...
Bxe5 {[%clk 0:01:16.6]} 35. R7f3 {[%clk 0:01:27.2]} 35... Bxg3 {[%clk
0:01:13.6]} 36. Kxg3 {[%clk 0:01:27.2]} 36... e5 {[%clk 0:01:04.7]} 37. Re1
{[%clk 0:01:21.6]} 37... R8c5 {[%clk 0:01:02.4]} 38. Re2 {[%clk 0:01:13.7]}
38... Kg7 {[%clk 0:01:00.3]} 39. Kg2 {[%clk 0:01:11.4]} 39... R3c4 {[%clk
0:00:56.5]} 40. Kh3 {[%clk 0:01:10.6]} 40... Ra5 {[%clk 0:00:56.4]} 41. Ref2
{[%clk 0:01:08.9]} 41... Ra7 {[%clk 0:00:56.4]} 42. Rb3 {[%clk 0:00:58.3]} 42...
Rca4 {[%clk 0:00:53.1]} 43. Rbb2 {[%clk 0:00:57.1]} 43... Ra3+ {[%clk
0:00:53.1]} 44. Kh2 {[%clk 0:00:57.2]} 44... R3a4 {[%clk 0:00:52]} 45. Rg2
{[%clk 0:00:57.3]} 45... h5 {[%clk 0:00:50.4]} 46. Kh3 {[%clk 0:00:47.2]} 46...
hxg4+ {[%clk 0:00:48]} 47. Kg3 {[%clk 0:00:47]} 47... Kh6 {[%clk 0:00:44.5]} 48.
Rb8 {[%clk 0:00:46.1]} 48... Rxa2 {[%clk 0:00:42.5]} 49. Rxa2 {[%clk 0:00:41.5]}
49... Rxa2 {[%clk 0:00:43.4]} 50. Kxg4 {[%clk 0:00:42]} 50... Ra4+ {[%clk
0:00:43]} 51. Kg3 {[%clk 0:00:41.4]} 51... Kg7 {[%clk 0:00:42.4]} 52. Rb6 {[%clk
0:00:40.2]} 52... Rf4 {[%clk 0:00:41.4]} 53. Re6 {[%clk 0:00:39.3]} 53... Rf5
{[%clk 0:00:40.1]} 54. Kg4 {[%clk 0:00:37.9]} 54... Kf7 {[%clk 0:00:40.6]} 55.
Rb6 {[%clk 0:00:37.6]} 55... Rf1 {[%clk 0:00:40.3]} 56. Rb7+ {[%clk 0:00:36.7]}
56... Ke6 {[%clk 0:00:40.7]} 57. Rb6+ {[%clk 0:00:37.3]} 57... Kf7 {[%clk
0:00:40.3]} 58. Rb7+ {[%clk 0:00:33.6]} 58... Ke6 {[%clk 0:00:38.7]} 59. Rb6+
{[%clk 0:00:33.9]} 59... Kf7 {[%clk 0:00:37.2]} 1/2-1/2

[Event "Early-Titled-Tuesday-Blitz-May-14-2024"]
[Site "Chess.com"]
[Date "2024.05.14"]
[Round "3"]
[White "SHIVACalypso"]
[Black "Szachulec75"]
[Result "1-0"]
[WhiteElo "2558"]
[BlackElo "2128"]
[TimeControl "180+1"]
[EndTime "8:29:26 PDT"]
[Termination "SHIVACalypso won by resignation"]

1. d4 {[%clk 0:03:00.9]} 1... Nf6 {[%clk 0:02:59.1]} 2. c4 {[%clk 0:02:59.8]}
2... g6 {[%clk 0:02:59.4]} 3. Nf3 {[%clk 0:03:00.2]} 3... Bg7 {[%clk 0:02:59.7]}
4. g3 {[%clk 0:03:00.5]} 4... d6 {[%clk 0:03:00.2]} 5. Bg2 {[%clk 0:03:01.1]}
5... O-O {[%clk 0:03:00.3]} 6. O-O {[%clk 0:03:01.8]} 6... Nbd7 {[%clk
0:02:59.2]} 7. Nc3 {[%clk 0:03:01.2]} 7... e5 {[%clk 0:02:59.1]} 8. e4 {[%clk
0:02:58.1]} 8... exd4 {[%clk 0:02:57.3]} 9. Nxd4 {[%clk 0:02:59]} 9... Re8
{[%clk 0:02:56.8]} 10. Re1 {[%clk 0:02:59]} 10... c6 {[%clk 0:02:57]} 11. b3
{[%clk 0:02:48]} 11... a5 {[%clk 0:02:35.8]} 12. Bb2 {[%clk 0:02:43.6]} 12...
Nc5 {[%clk 0:02:35]} 13. f3 {[%clk 0:02:43.9]} 13... Qb6 {[%clk 0:02:35.1]} 14.
Kh1 {[%clk 0:02:32.7]} 14... a4 {[%clk 0:02:34.4]} 15. Rb1 {[%clk 0:02:29.7]}
15... axb3 {[%clk 0:02:33.1]} 16. axb3 {[%clk 0:02:29.2]} 16... h6 {[%clk
0:02:30.2]} 17. Ba1 {[%clk 0:02:03.5]} 17... Nfd7 {[%clk 0:01:47.4]} 18. b4
{[%clk 0:01:51]} 18... Na6 {[%clk 0:01:33.5]} 19. Nc2 {[%clk 0:01:44.8]} 19...
Nc7 {[%clk 0:01:25.1]} 20. Qxd6 {[%clk 0:01:20.1]} 20... Rxa1 {[%clk 0:01:22.7]}
21. Nxa1 {[%clk 0:01:17.8]} 21... Bxc3 {[%clk 0:01:22.1]} 22. c5 {[%clk
0:01:18.1]} 22... Nb5 {[%clk 0:01:15.2]} 23. Qxd7 {[%clk 0:01:07.7]} 23... Bxd7
{[%clk 0:01:12.3]} 24. cxb6 {[%clk 0:01:07.7]} 24... Bxe1 {[%clk 0:01:09.6]} 25.
Rxe1 {[%clk 0:01:07.9]} 25... Kf8 {[%clk 0:01:03]} 26. Nb3 {[%clk 0:01:07.6]}
26... Ra8 {[%clk 0:01:00.4]} 27. Nc5 {[%clk 0:01:07.2]} 27... Bc8 {[%clk
0:01:00.9]} 28. f4 {[%clk 0:01:01.3]} 28... Nd6 {[%clk 0:00:46.5]} 29. Rc1
{[%clk 0:00:47.6]} 29... Ra2 {[%clk 0:00:22.1]} 30. e5 {[%clk 0:00:47.2]} 30...
Nf5 {[%clk 0:00:21]} 31. Bxc6 {[%clk 0:00:33.9]} 31... bxc6 {[%clk 0:00:20]} 32.
b7 {[%clk 0:00:34.5]} 32... Bxb7 {[%clk 0:00:20.6]} 33. Nxb7 {[%clk 0:00:35.3]}
33... Rb2 {[%clk 0:00:18.8]} 34. Nd6 {[%clk 0:00:32.2]} 34... Ne3 {[%clk
0:00:14.8]} 35. Kg1 {[%clk 0:00:27.1]} 35... Rxb4 {[%clk 0:00:14.4]} 36. Rxc6
{[%clk 0:00:23.9]} 36... Rb1+ {[%clk 0:00:09.1]} 37. Kf2 {[%clk 0:00:23]} 37...
Ng4+ {[%clk 0:00:10]} 38. Kg2 {[%clk 0:00:20.6]} 38... Ne3+ {[%clk 0:00:10]} 39.
Kf3 {[%clk 0:00:20.3]} 39... Nf5 {[%clk 0:00:08]} 40. Nxf5 {[%clk 0:00:19.9]}
40... gxf5 {[%clk 0:00:08]} 41. Rxh6 {[%clk 0:00:20.3]} 1-0

[Event "Early-Titled-Tuesday-Blitz-May-14-2024"]
[Site "Chess.com"]
[Date "2024.05.14"]
[Round "3"]
[White "margarita_2703"]
[Black "Alexchess1984"]
[Result "0-1"]
[WhiteElo "2355"]
[BlackElo "2690"]
[TimeControl "180+1"]
[EndTime "8:29:27 PDT"]
[Termination "Alexchess1984 won by resignation"]

1. e4 {[%clk 0:03:00.9]} 1... e6 {[%clk 0:03:00.9]} 2. d4 {[%clk 0:02:56.4]}
2... d5 {[%clk 0:03:01.3]} 3. e5 {[%clk 0:02:41]} 3... c5 {[%clk 0:02:57.8]} 4.
c3 {[%clk 0:02:41.4]} 4... Nc6 {[%clk 0:02:57]} 5. Nf3 {[%clk 0:02:41.9]} 5...
Nh6 {[%clk 0:02:56.1]} 6. Na3 {[%clk 0:02:36.8]} 6... cxd4 {[%clk 0:02:51.7]} 7.
cxd4 {[%clk 0:02:37.7]} 7... Bxa3 {[%clk 0:02:50.6]} 8. bxa3 {[%clk 0:02:38.6]}
8... Nf5 {[%clk 0:02:46.8]} 9. Bd3 {[%clk 0:02:38.6]} 9... Nfxd4 {[%clk
0:02:42.7]} 10. Nxd4 {[%clk 0:02:38.1]} 10... Nxd4 {[%clk 0:02:40.9]} 11. Qa4+
{[%clk 0:02:38.4]} 11... Nc6 {[%clk 0:02:39.5]} 12. O-O {[%clk 0:02:38.6]} 12...
O-O {[%clk 0:02:31.4]} 13. Re1 {[%clk 0:02:28.9]} 13... Bd7 {[%clk 0:02:20.7]}
14. Qg4 {[%clk 0:02:26.4]} 14... f5 {[%clk 0:02:19.9]} 15. exf6 {[%clk 0:02:26]}
15... Qxf6 {[%clk 0:02:19.6]} 16. Be3 {[%clk 0:02:24.1]} 16... Ne5 {[%clk
0:02:08.7]} 17. Qe2 {[%clk 0:02:22.2]} 17... Nxd3 {[%clk 0:02:07.9]} 18. Qxd3
{[%clk 0:02:23.1]} 18... a6 {[%clk 0:02:00.1]} 19. Bd4 {[%clk 0:02:22]} 19...
Qg6 {[%clk 0:01:47.6]} 20. Qxg6 {[%clk 0:02:18.9]} 20... hxg6 {[%clk 0:01:47.7]}
21. Be5 {[%clk 0:02:18.6]} 21... Rac8 {[%clk 0:01:45.9]} 22. Rac1 {[%clk
0:02:16.6]} 22... Rc4 {[%clk 0:01:39.5]} 23. f4 {[%clk 0:02:14.7]} 23... Rfc8
{[%clk 0:01:37]} 24. Rxc4 {[%clk 0:02:14.5]} 24... Rxc4 {[%clk 0:01:34.8]} 25.
Kf2 {[%clk 0:02:13]} 25... Bb5 {[%clk 0:01:29.1]} 26. h4 {[%clk 0:02:10.1]}
26... Rc2+ {[%clk 0:01:28.4]} 27. Kf3 {[%clk 0:02:08.1]} 27... Rxa2 {[%clk
0:01:26.8]} 28. Re3 {[%clk 0:02:08.4]} 28... Kf7 {[%clk 0:01:24]} 29. Rc3 {[%clk
0:02:06.1]} 29... Bc6 {[%clk 0:01:22.7]} 30. Ke3 {[%clk 0:01:59.2]} 30... Rxg2
{[%clk 0:01:20.2]} 31. Kd4 {[%clk 0:01:59.6]} 31... Rh2 {[%clk 0:01:08.9]} 32.
Kc5 {[%clk 0:01:58.5]} 32... Rxh4 {[%clk 0:01:08.6]} 33. Kd6 {[%clk 0:01:58.7]}
33... Rh1 {[%clk 0:01:02.9]} 34. Rg3 {[%clk 0:01:58.3]} 34... Bb5 {[%clk
0:00:44.3]} 35. Kc7 {[%clk 0:01:54.1]} 35... Rc1+ {[%clk 0:00:33.2]} 36. Kxb7
{[%clk 0:01:14.7]} 36... Rc4 {[%clk 0:00:32.3]} 37. Rh3 {[%clk 0:01:10.7]} 37...
d4 {[%clk 0:00:32.1]} 38. Rh8 {[%clk 0:01:11.3]} 38... d3 {[%clk 0:00:18.9]} 39.
Rd8 {[%clk 0:01:11.4]} 39... Rc2 {[%clk 0:00:14.9]} 40. Bd6 {[%clk 0:01:10.6]}
40... g5 {[%clk 0:00:14.9]} 41. Bb4 {[%clk 0:01:11.5]} 41... gxf4 {[%clk
0:00:14]} 42. a4 {[%clk 0:01:08.3]} 42... Bc4 {[%clk 0:00:13.1]} 43. Rd7+ {[%clk
0:01:08.1]} 43... Kg6 {[%clk 0:00:13.4]} 44. a5 {[%clk 0:01:06.1]} 44... f3
{[%clk 0:00:13.9]} 45. Bc5 {[%clk 0:01:01.7]} 45... Bd5+ {[%clk 0:00:13.6]} 46.
Rxd5 {[%clk 0:01:01.4]} 46... Rxc5 {[%clk 0:00:14.5]} 47. Rxc5 {[%clk
0:01:00.6]} 47... d2 {[%clk 0:00:14.4]} 48. Rc6 {[%clk 0:00:58.1]} 48... d1=Q
{[%clk 0:00:14.1]} 49. Rxe6+ {[%clk 0:00:59]} 49... Kf5 {[%clk 0:00:14.4]} 50.
Rxa6 {[%clk 0:00:59.9]} 50... Qd5+ {[%clk 0:00:14.1]} 51. Kb8 {[%clk 0:00:59.3]}
51... Qb5+ {[%clk 0:00:12.7]} 52. Ka7 {[%clk 0:00:59.6]} 52... f2 {[%clk
0:00:12.6]} 53. Rb6 {[%clk 0:00:54]} 53... Qxa5+ {[%clk 0:00:12.5]} 54. Kb7
{[%clk 0:00:54.9]} 54... Qxb6+ {[%clk 0:00:12.6]} 55. Kxb6 {[%clk 0:00:54.9]}
55... f1=Q {[%clk 0:00:13.5]} 56. Ka7 {[%clk 0:00:55.8]} 56... Qb5 {[%clk
0:00:13.5]} 57. Ka8 {[%clk 0:00:56.2]} 57... Ke6 {[%clk 0:00:14.4]} 58. Ka7
{[%clk 0:00:57.1]} 58... Kd7 {[%clk 0:00:15.2]} 0-1